bitfinex/quotes_SOLUSD_20241125
["timestamp","ask_amount","ask_price","bid_price","bid_amount"]
[1732519655627,6.64547099,252.22,252.1,6.4452]
[1732519655826,23.776884,252.21,252.1,6.4452]
[1732519656512,6.64547099,252.25,252.14,16.2088]
[1732519656717,6.64547099,252.24,252.14,16.2088]
[1732519656922,6.64547099,252.22,252.14,16.2088]
[1732519658031,6.64547099,252.21,252.14,16.2088]
[1732519658225,6.64547099,252.2,252.14,16.2088]
[1732519658938,6.64547099,252.21,252.14,16.2088]
[1732519663631,6.64547099,252.18,252.1,6.4452]
[1732519663840,6.64547099,252.14,252.1,6.4452]
[1732519664842,6.64547099,252.12,252.09,15.2228]
[1732519667837,6.64547099,252.12,252.04,6.5222]
[1732519668047,6.64547099,252.1,252.07,20.0]
[1732519668234,6.64547099,252.1,252.02,15.2228]
[1732519677740,6.64547099,252.12,252.02,15.2228]
[1732519677944,15.8311,252.21,252.05,20.0]
[1732519678139,6.64547099,252.14,252.05,20.0]
[1732519679155,6.64547099,252.1,252.02,15.2228]
[1732519680958,23.776884,252.2,252.02,15.2228]
[1732519680959,6.64547099,252.12,252.02,15.2228]
[1732519681541,6.64547099,252.14,252.05,20.0]
[1732519682848,6.64547099,252.12,252.05,20.0]
[1732519683946,6.64547099,252.12,252.01,20.0]
[1732519686943,6.64547099,252.14,252.01,20.0]
[1732519687444,15.8311,252.21,252.01,20.0]
[1732519687765,6.64547099,252.14,252.01,20.0]
[1732519691658,15.8311,252.21,252.01,20.0]
[1732519691860,6.64547099,252.18,252.01,24.88224456]
[1732519692062,6.64547099,252.18,252.04,20.0]
[1732519692659,6.64547099,252.18,252.02,20.0]
[1732519693543,6.64547099,252.16,252.02,20.0]
[1732519694173,6.64547099,252.16,252.01,24.88224456]
[1732519694582,6.64547099,252.14,252.01,24.88224456]
[1732519696168,23.776884,252.2,252.01,24.88224456]
[1732519696374,6.64547099,252.16,252.01,24.88224456]
[1732519696751,6.64547099,252.14,252.01,24.88224456]
[1732519696971,6.64547099,252.14,252.01,4.88224456]
[1732519697778,6.64547099,252.12,252.01,4.88224456]
[1732519698276,6.64547099,252.14,252.01,24.88224456]
[1732519699848,15.8311,252.21,252.02,20.0]
[1732519700173,15.8311,252.21,252.04,20.0]
[1732519700174,6.64547099,252.15,252.04,20.0]
[1732519700854,6.64547099,252.15,252.02,4.88224456]
[1732519701548,6.64547099,252.13,252.02,4.88224456]
[1732519702075,23.776884,252.2,252.02,4.88224456]
[1732519702267,6.64547099,252.15,252.02,4.88224456]
[1732519703274,23.776884,252.2,252.02,4.88224456]
[1732519703275,6.64547099,252.13,252.02,4.88224456]
[1732519704381,6.64547099,252.11,252.01,20.0]
[1732519704981,6.64547099,252.09,252.01,20.0]
[1732519705154,6.64547099,252.07,252.01,20.0]
[1732519708173,6.64547099,252.09,252.01,20.0]
[1732519722281,6.64547099,252.11,252.01,20.0]
[1732519724368,6.64547099,252.13,252.01,20.0]
[1732519724685,6.64547099,252.15,252.01,20.0]
[1732519730497,39.845784,252.2,252.01,20.0]
[1732519730498,6.64547099,252.14,252.01,20.0]
[1732519730880,6.64547099,252.15,252.01,20.0]
[1732519731101,39.845784,252.2,252.01,20.0]
[1732519731409,6.64547099,252.16,252.05,20.0]
[1732519731574,16.0689,252.2,252.06,6.4737]
[1732519731774,135.7,252.28,252.06,6.4737]
[1732519731775,16.5017,252.27,252.09,20.0]
[1732519731993,6.64547099,252.2,252.09,20.0]
[1732519732282,6.64547099,252.19,252.09,20.0]
[1732519733885,6.64547099,252.2,252.09,20.0]
[1732519734498,6.64547099,252.2,252.1,16.3681]
[1732519735314,6.64547099,252.21,252.1,16.3681]
[1732519735606,6.64547099,252.19,252.1,16.3681]
[1732519738907,6.64547099,252.16,252.1,16.3681]
[1732519740793,6.64547099,252.16,252.06,6.4737]
[1732519740993,6.64547099,252.12,252.06,6.4737]
[1732519742911,6.64547099,252.14,252.06,6.4737]
[1732519747218,6.64547099,252.14,252.04,15.5079]
[1732519747514,6.64547099,252.14,252.07,20.0]
[1732519751413,6.64547099,252.14,252.04,15.5079]
[1732519752401,6.64547099,252.12,252.04,15.5079]
[1732519752717,6.64547099,252.1,252.04,15.5079]
[1732519752900,6.64547099,252.12,252.04,15.5079]
[1732519758719,6.64547099,252.1,252.03,20.0]
[1732519758896,6.64547099,252.08,252.0,6.666]
[1732519764013,23.776884,252.11,252.0,6.666]
[1732519764217,6.64547099,252.1,252.0,6.666]
[1732519778237,15.1605,252.19,252.0,6.666]
[1732519778238,20.0,252.16,252.0,6.666]
[1732519778530,23.776884,252.13,252.0,6.666]
[1732519778911,23.776884,252.13,252.03,20.0]
[1732519779112,30.42235499,252.13,252.03,20.0]
[1732519785321,6.64547099,252.11,252.03,20.0]
[1732519786650,23.776884,252.13,252.03,20.0]
[1732519787154,6.64547099,252.11,252.03,20.0]
[1732519787336,23.776884,252.13,252.03,20.0]
[1732519787534,30.42235499,252.13,252.03,20.0]
[1732519788534,15.1605,252.19,252.03,20.0]
[1732519788742,6.64547099,252.15,252.03,20.0]
[1732519790443,6.64547099,252.11,252.03,20.0]
[1732519792060,6.64547099,252.12,252.03,20.0]
[1732519799553,6.64547099,252.13,252.04,15.977]
[1732519804641,6.64547099,252.14,252.04,15.977]
[1732519805045,23.776884,252.19,252.04,15.977]
[1732519805243,6.64547099,252.16,252.04,15.977]
[1732519805656,6.64547099,252.14,252.04,15.977]
[1732519805835,23.776884,252.19,252.04,15.977]
[1732519805836,6.64547099,252.1,252.04,15.977]
[1732519806744,6.64547099,252.1,252.03,20.0]
[1732519806965,6.64547099,252.06,252.0,6.666]
[1732519808570,6.64547099,252.04,252.0,6.666]
[1732519808754,6.64547099,252.06,252.0,6.666]
[1732519808940,15.7884,252.17,252.0,6.666]
[1732519809137,23.776884,252.11,252.0,6.666]
[1732519809548,6.64547099,252.07,252.0,6.666]
[1732519810472,6.64547099,252.05,251.98,15.2482]
[1732519810845,23.776884,252.08,251.92,15.4503]
[1732519810846,6.64547099,251.99,251.92,15.4503]
[1732519811043,15.5426,252.07,251.92,15.4503]
[1732519811044,6.64547099,251.98,251.92,15.4503]
[1732519811570,6.64547099,252.0,251.92,15.4503]
[1732519811865,6.64547099,251.98,251.92,15.4503]
[1732519812553,6.64547099,252.02,251.92,15.4503]
[1732519813365,23.776884,252.06,251.95,20.0]
[1732519813871,6.1804,252.1,251.95,20.0]
[1732519814046,6.64547099,252.05,251.95,20.0]
[1732519814568,6.64547099,252.07,251.95,20.0]
[1732519814760,6.64547099,252.07,251.96,6.5601]
[1732519815452,6.64547099,252.08,251.99,20.0]
[1732519815770,6.64547099,252.06,251.99,20.0]
[1732519815977,6.64547099,252.05,251.96,6.5601]
[1732519816547,6.64547099,252.04,251.96,6.5601]
[1732519816745,6.64547099,252.02,251.96,6.5601]
[1732519817463,6.64547099,252.03,251.96,6.5601]
[1732519818767,6.64547099,252.05,251.96,6.5601]
[1732519819572,16.613,252.13,251.99,20.0]
[1732519819793,6.64547099,252.08,251.99,20.0]
[1732519819958,6.64547099,252.06,251.99,20.0]
[1732519820164,6.64547099,252.05,251.96,6.5601]
[1732519821671,6.64547099,252.03,251.96,6.5601]
[1732519821871,6.64547099,252.01,251.95,20.0]
[1732519823055,6.64547099,251.99,251.95,20.0]
[1732519823273,6.64547099,252.02,251.95,20.0]
[1732519824477,26.58188396,252.12,251.95,20.0]
[1732519824478,6.64547099,252.04,251.95,20.0]
[1732519827307,6.64547099,252.06,251.95,20.0]
[1732519829990,6.64547099,252.06,251.86,82.6]
[1732519829991,6.6253,252.16,252.0,15.0784]
[1732519830158,6.64547099,252.1,252.0,15.0784]
[1732519831051,6.64547099,252.09,252.0,15.0784]
[1732519831256,6.6253,252.16,252.0,15.0784]
[1732519831257,6.64547099,252.1,252.0,15.0784]
[1732519833074,6.64547099,252.07,252.0,15.0784]
[1732519834967,6.64547099,252.09,252.0,15.0784]
[1732519837069,6.64547099,252.1,252.0,15.0784]
[1732519838764,6.64547099,252.1,252.03,20.0]
[1732519839096,23.776884,252.18,252.03,20.0]
[1732519839264,6.64547099,252.14,252.03,20.0]
[1732519839781,6.64547099,252.13,252.03,20.0]
[1732519842580,6.64547099,252.12,252.03,20.0]
[1732519849184,6.059,252.22,252.07,20.0]
[1732519849363,6.64547099,252.18,252.08,15.1628]
[1732519849764,6.64547099,252.19,252.08,15.1628]
[1732519849964,6.64547099,252.19,252.11,20.0]
[1732519850966,16.4883,252.25,252.11,20.0]
[1732519850967,6.64547099,252.2,252.11,20.0]
[1732519853485,6.64547099,252.21,252.11,20.0]
[1732519854884,6.64547099,252.21,252.12,6.3168]
[1732519857475,6.64547099,252.23,252.12,6.3168]
[1732519857796,6.64547099,252.23,252.15,20.0]
[1732519858591,31.525489,252.32,252.15,20.0]
[1732519858797,6.64547099,252.25,252.16,16.3548]
[1732519858965,15.6865,252.32,252.16,16.3548]
[1732519858966,6.64547099,252.26,252.16,16.3548]
[1732519860070,6.64547099,252.24,252.16,16.3548]
[1732519860697,6.64547099,252.21,252.16,16.3548]
[1732519860873,23.776884,252.31,252.16,16.3548]
[1732519861074,6.64547099,252.22,252.16,16.3548]
[1732519863485,6.64547099,252.23,252.16,16.3548]
[1732519864381,6.64547099,252.21,252.16,16.3548]
[1732519864574,6.64547099,252.19,252.16,16.3548]
[1732519864975,6.64547099,252.19,252.15,20.0]
[1732519865489,6.64547099,252.17,252.12,6.3168]
[1732519865695,6.64547099,252.17,252.1,16.1229]
[1732519865696,6.64547099,252.14,252.1,16.1229]
[1732519866274,6.64547099,252.15,252.1,16.1229]
[1732519866977,6.64547099,252.18,252.1,16.1229]
[1732519868503,6.64547099,252.19,252.1,16.1229]
[1732519872583,23.776884,252.19,252.1,16.1229]
[1732519873303,6.64547099,252.2,252.1,16.1229]
[1732519873610,6.64547099,252.21,252.13,20.0]
[1732519873998,20.0,252.28,252.13,20.0]
[1732519873999,6.64547099,252.19,252.13,20.0]
[1732519876709,6.64547099,252.19,252.1,16.1229]
[1732519877896,6.64547099,252.19,252.13,20.0]
[1732519883220,6.64547099,252.16,252.13,20.0]
[1732519885813,6.64547099,252.17,252.13,20.0]
[1732519886812,6.64547099,252.15,252.06,6.4128]
[1732519888104,6.64547099,252.15,252.09,20.0]
[1732519888305,6.64547099,252.13,252.07,20.0]
[1732519888821,6.64547099,252.11,252.07,20.0]
[1732519889118,6.64547099,252.13,252.07,20.0]
[1732519889803,23.776884,252.14,252.07,20.0]
[1732519890930,6.64547099,252.13,252.07,20.0]
[1732519892335,6.19792885,252.3,252.11,20.0]
[1732519892497,6.64547099,252.25,252.12,15.0191]
[1732519892702,6.64547099,252.19,252.15,20.0]
[1732519892903,6.64547099,252.17,252.11,20.0]
[1732519894127,6.64547099,252.17,252.08,6.4835]
[1732519895405,6.64547099,252.19,252.08,6.4835]
[1732519895610,6.64547099,252.19,252.11,20.0]
[1732519896497,15.6032,252.26,252.11,20.0]
[1732519896699,6.64547099,252.21,252.11,20.0]
[1732519897629,15.6032,252.26,252.11,20.0]
[1732519897801,6.64547099,252.23,252.11,20.0]
[1732519898003,38.97774167,252.34,252.11,20.0]
[1732519898004,6.19792885,252.33,252.15,20.0]
[1732519898222,6.64547099,252.27,252.15,20.0]
[1732519899740,23.776884,252.26,252.15,20.0]
[1732519903236,23.776884,252.26,252.16,6.1624]
[1732519903423,23.776884,252.26,252.19,20.0]
[1732519903629,15.836924,252.35,252.19,20.0]
[1732519903830,6.64547099,252.31,252.19,20.0]
[1732519904431,6.64547099,252.31,252.2,16.3994]
[1732519904630,6.64547099,252.32,252.23,20.0]
[1732519904932,6.64547099,252.35,252.23,20.0]
[1732519905136,2.95736447,252.34,252.23,20.0]
[1732519905325,6.64547099,252.36,252.23,20.0]
[1732519905523,15.3036,252.42,252.23,20.0]
[1732519905739,6.64547099,252.38,252.24,6.4468]
[1732519905916,6.64547099,252.38,252.27,20.0]
[1732519906439,31.134386,252.42,252.27,20.0]
[1732519906440,6.64547099,252.37,252.27,20.0]
[1732519907329,6.64547099,252.36,252.27,20.0]
[1732519909945,6.64547099,252.34,252.27,20.0]
[1732519910319,30.42235499,252.35,252.27,20.0]
[1732519910653,23.776884,252.35,252.27,20.0]
[1732519915836,6.64547099,252.4,252.31,20.0]
[1732519917326,15.4351,252.48,252.31,20.0]
[1732519917658,6.64547099,252.44,252.31,20.0]
[1732519917945,6.64547099,252.44,252.32,6.1855]
[1732519918146,6.64547099,252.44,252.35,20.0]
[1732519919246,23.776884,252.43,252.35,20.0]
[1732519920946,6.64547099,252.42,252.35,20.0]
[1732519923649,6.6526,252.51,252.35,20.0]
[1732519923839,6.64547099,252.46,252.35,20.0]
[1732519924247,6.64547099,252.44,252.35,20.0]
[1732519925048,15.824704,252.52,252.35,20.0]
[1732519925238,23.776884,252.47,252.39,20.0]
[1732519926154,6.64547099,252.46,252.39,20.0]
[1732519929728,23.776884,252.47,252.39,20.0]
[1732519929729,6.64547099,252.44,252.39,20.0]
[1732519929945,6.64547099,252.42,252.36,16.0644]
[1732519930439,23.776884,252.47,252.36,16.0644]
[1732519930646,6.64547099,252.43,252.36,16.0644]
[1732519932639,6.64547099,252.42,252.36,16.0644]
[1732519933143,6.64547099,252.43,252.36,16.0644]
[1732519933567,23.776884,252.47,252.36,16.0644]
[1732519933568,6.64547099,252.44,252.36,16.0644]
[1732519933856,23.776884,252.43,252.36,16.0644]
[1732519935444,30.42235499,252.43,252.36,16.0644]
[1732519938056,6.64547099,252.41,252.32,6.1855]
[1732519938247,6.64547099,252.39,252.35,20.0]
[1732519938453,6.64547099,252.37,252.35,20.0]
[1732519939564,6.64547099,252.37,252.32,6.1855]
[1732519939736,6.64547099,252.37,252.33,20.0]
[1732519941361,31.899399,252.54,252.33,20.0]
[1732519941540,6.64547099,252.45,252.37,20.0]
[1732519941741,6.64547099,252.46,252.37,20.0]
[1732519943051,23.776884,252.45,252.37,20.0]
[1732519943558,23.776884,252.45,252.34,6.4752]
[1732519943764,6.64547099,252.4,252.34,6.4752]
[1732519945949,23.776884,252.45,252.34,6.4752]
[1732519946151,6.64547099,252.4,252.34,6.4752]
[1732519946350,23.776884,252.4,252.34,6.4752]
[1732519946567,31.899399,252.54,252.37,20.0]
[1732519946865,6.64547099,252.46,252.37,20.0]
[1732519947566,6.14547099,252.46,252.37,20.0]
[1732519949371,31.899399,252.54,252.41,20.0]
[1732519949544,6.64547099,252.5,252.41,20.0]
[1732519949961,6.64547099,252.49,252.41,20.0]
[1732519952958,6.64547099,252.5,252.41,20.0]
[1732519953854,6.64547099,252.52,252.41,20.0]
[1732519954164,6.64547099,252.56,252.49,20.0]
[1732519954672,6.64547099,252.57,252.49,20.0]
[1732519955376,23.776884,252.56,252.49,20.0]
[1732519956550,23.776884,252.57,252.49,20.0]
[1732519960369,23.776884,252.58,252.49,20.0]
[1732519961677,30.42235499,252.58,252.49,20.0]
[1732519962075,23.776884,252.58,252.49,20.0]
[1732519962655,20.0,252.64,252.49,20.0]
[1732519962875,6.64547099,252.58,252.49,20.0]
[1732519963576,6.64547099,252.59,252.49,20.0]
[1732519963881,23.776884,252.58,252.49,20.0]
[1732519964781,42.73988396,252.67,252.53,20.0]
[1732519964979,6.64547099,252.62,252.53,20.0]
[1732519966173,23.776884,252.61,252.53,20.0]
[1732519966560,6.64547099,252.6,252.53,20.0]
[1732519967360,6.64547099,252.58,252.5,6.5842]
[1732519967570,6.64547099,252.57,252.5,6.5842]
[1732519971682,6.64547099,252.56,252.5,6.5842]
[1732519972881,6.64547099,252.57,252.5,6.5842]
[1732519974779,23.776884,252.61,252.5,6.5842]
[1732519974969,6.64547099,252.58,252.5,6.5842]
[1732519975175,6.64547099,252.57,252.5,6.5842]
[1732519978191,6.64547099,252.55,252.49,20.0]
[1732519978883,6.64547099,252.5,252.43,6.6167]
[1732519979267,6.64547099,252.48,252.43,6.6167]
[1732519979988,6.64547099,252.5,252.43,6.6167]
[1732519980295,6.64547099,252.49,252.43,6.6167]
[1732519980584,6.64547099,252.49,252.43,20.0]
[1732519981091,6.64547099,252.49,252.4,15.4208]
[1732519985073,31.10715,252.66,252.44,6.6318]
[1732519985269,6.64547099,252.57,252.47,20.0]
[1732519986457,31.10715,252.66,252.47,20.0]
[1732519986458,6.64547099,252.55,252.47,20.0]
[1732519990591,23.776884,252.54,252.47,20.0]
[1732519992180,23.776884,252.56,252.47,20.0]
[1732519995291,6.64547099,252.55,252.47,20.0]
[1732519995474,23.776884,252.54,252.47,20.0]
[1732519998189,6.64547099,252.55,252.47,20.0]
[1732519998402,23.776884,252.54,252.47,20.0]
[1732520006805,15.2924,252.66,252.47,20.0]
[1732520006985,6.64547099,252.59,252.48,16.4818]
[1732520007992,23.776884,252.58,252.48,16.4818]
[1732520009393,6.64547099,252.56,252.48,16.4818]
[1732520009597,23.776884,252.55,252.48,16.14287778]
[1732520009796,15.2924,252.66,252.51,20.0]
[1732520010096,6.64547099,252.57,252.48,16.14287778]
[1732520010302,6.64547099,252.53,252.47,20.0]
[1732520011193,43.776884,252.62,252.47,20.0]
[1732520011511,23.776884,252.52,252.47,20.0]
[1732520011708,23.776884,252.52,252.44,6.6318]
[1732520011894,6.64547099,252.51,252.44,6.6318]
[1732520012100,23.776884,252.5,252.36,6.2737]
[1732520012492,23.776884,252.5,252.37,15.1861]
[1732520013597,23.776884,252.5,252.4,20.0]
[1732520013991,23.776884,252.5,252.43,6.595]
[1732520014194,23.776884,252.5,252.46,20.0]
[1732520031937,23.776884,252.55,252.46,20.0]
[1732520035431,6.64547099,252.56,252.46,20.0]
[1732520035614,23.776884,252.55,252.46,20.0]
[1732520038232,23.776884,252.53,252.46,20.0]
[1732520038624,6.64547099,252.52,252.46,20.0]
[1732520038817,23.776884,252.51,252.46,20.0]
[1732520039738,23.776884,252.47,252.37,21.4206]
[1732520039925,23.776884,252.45,252.37,21.4206]
[1732520040513,23.776884,252.43,252.37,21.4206]
[1732520041232,23.776884,252.41,252.31,6.3542]
[1732520042311,23.776884,252.41,252.34,20.0]
[1732520043144,23.776884,252.41,252.31,6.3542]
[1732520043315,23.776884,252.39,252.31,6.3542]
[1732520044311,23.776884,252.39,252.34,20.0]
[1732520045743,23.776884,252.39,252.33,20.0]
[1732520046115,23.776884,252.37,252.28,20.0]
[1732520046922,23.776884,252.35,252.28,20.0]
[1732520047916,23.776884,252.35,252.25,6.0889]
[1732520049227,23.776884,252.35,252.28,20.0]
[1732520049831,23.776884,252.37,252.28,20.0]
[1732520050447,6.64547099,252.34,252.28,20.0]
[1732520050616,23.776884,252.33,252.27,20.0]
[1732520050811,23.776884,252.31,252.22,20.0]
[1732520051921,15.8674,252.49,252.22,25.23592337]
[1732520052134,6.64547099,252.39,252.26,20.0]
[1732520052469,6.64547099,252.37,252.3,20.0]
[1732520053042,6.64547099,252.34,252.27,13.42067956]
[1732520053232,23.776884,252.33,252.27,13.42067956]
[1732520054435,23.776884,252.35,252.27,13.42067956]
[1732520054647,23.776884,252.37,252.27,13.42067956]
[1732520054824,23.776884,252.35,252.27,13.42067956]
[1732520058548,6.64547099,252.34,252.27,13.42067956]
[1732520058847,23.776884,252.33,252.27,13.42067956]
[1732520059039,6.64547099,252.32,252.27,13.42067956]
[1732520059352,23.776884,252.37,252.3,20.0]
[1732520059542,23.776884,252.35,252.31,13.42067956]
[1732520060526,23.776884,252.33,252.31,13.42067956]
[1732520065060,6.64547099,252.32,252.31,13.42067956]
[1732520065661,30.42235499,252.32,252.31,13.42067956]
[1732520069143,23.776884,252.32,252.31,13.42067956]
[1732520069352,16.0828,252.44,252.31,13.42067956]
[1732520069533,6.64547099,252.43,252.34,20.0]
[1732520069740,6.64547099,252.43,252.35,13.42067956]
[1732520069936,6.64547099,252.41,252.35,13.42067956]
[1732520070761,23.776884,252.4,252.35,13.42067956]
[1732520071349,6.64547099,252.39,252.35,13.42067956]
[1732520071574,23.776884,252.4,252.35,13.42067956]
[1732520071869,30.42235499,252.4,252.35,13.42067956]
[1732520072577,23.776884,252.4,252.35,13.42067956]
[1732520072747,15.2655,252.51,252.38,20.0]
[1732520072947,15.2655,252.51,252.39,13.42067956]
[1732520072948,6.64547099,252.45,252.39,13.42067956]
[1732520073149,15.2655,252.51,252.39,13.42067956]
[1732520073460,6.64547099,252.47,252.39,13.42067956]
[1732520074267,6.64547099,252.47,252.37,20.0]
[1732520074665,23.776884,252.46,252.34,15.5786]
[1732520074992,23.776884,252.46,252.38,13.42067956]
[1732520077467,30.42235499,252.46,252.38,13.42067956]
[1732520077850,23.776884,252.46,252.38,13.42067956]
[1732520078050,30.42235499,252.46,252.38,13.42067956]
[1732520083280,23.776884,252.46,252.38,13.42067956]
[1732520083573,23.776884,252.47,252.38,13.42067956]
[1732520084360,6.64547099,252.45,252.38,13.42067956]
[1732520084653,23.776884,252.44,252.38,13.42067956]
[1732520084984,23.776884,252.45,252.38,13.42067956]
[1732520085363,23.776884,252.46,252.37,20.0]
[1732520085679,23.776884,252.46,252.38,33.42067956]
[1732520088780,30.42235499,252.46,252.38,33.42067956]
[1732520089172,6.64547099,252.44,252.38,33.42067956]
[1732520089673,23.776884,252.43,252.38,33.42067956]
[1732520090576,23.776884,252.45,252.38,33.42067956]
[1732520091684,23.776884,252.45,252.39,20.0]
[1732520091993,23.776884,252.45,252.4,13.42067956]
[1732520092576,23.776884,252.46,252.4,13.42067956]
[1732520097981,30.42235499,252.44,252.4,13.42067956]
[1732520098178,30.42235499,252.41,252.4,13.42067956]
[1732520098393,23.776884,252.4,252.3,13.42067956]
[1732520098591,23.776884,252.38,252.3,13.42067956]
[1732520099107,23.776884,252.39,252.3,13.42067956]
[1732520099405,23.776884,252.39,252.33,20.0]
[1732520099603,23.776884,252.39,252.34,13.42067956]
[1732520099904,23.776884,252.4,252.37,20.0]
[1732520100117,23.776884,252.4,252.38,13.42067956]
[1732520100481,30.42235499,252.39,252.38,13.42067956]
[1732520102801,23.776884,252.39,252.38,13.42067956]
[1732520103104,30.42235499,252.39,252.38,13.42067956]
[1732520103485,23.776884,252.38,252.26,20.0]
[1732520103780,6.64547099,252.36,252.26,20.0]
[1732520104104,23.776884,252.35,252.26,20.0]
[1732520105206,16.495,252.48,252.26,34.64138674]
[1732520105422,6.64547099,252.42,252.31,20.0]
[1732520105596,6.64547099,252.42,252.35,20.0]
[1732520106206,16.495,252.48,252.35,20.0]
[1732520106379,6.64547099,252.46,252.35,20.0]
[1732520107489,23.776884,252.45,252.35,20.0]
[1732520107692,16.1318,252.55,252.39,20.0]
[1732520107986,6.64547099,252.51,252.39,20.0]
[1732520108994,23.776884,252.5,252.39,20.0]
[1732520109400,30.42235499,252.5,252.39,20.0]
[1732520109778,23.776884,252.5,252.37,20.0]
[1732520110181,30.42235499,252.5,252.37,20.0]
[1732520110410,30.42235499,252.5,252.38,20.0]
[1732520111382,23.776884,252.5,252.38,20.0]
[1732520111590,23.776884,252.51,252.39,20.0]
[1732520112305,30.42235499,252.51,252.39,20.0]
[1732520115400,6.64547099,252.49,252.39,20.0]
[1732520115703,30.42235499,252.51,252.39,20.0]
[1732520118407,30.42235499,252.51,252.37,20.0]
[1732520118980,23.776884,252.51,252.39,20.0]
[1732520119182,23.776884,252.51,252.41,16.0429]
[1732520119393,23.776884,252.51,252.44,20.0]
[1732520120110,23.776884,252.52,252.44,20.0]
[1732520120507,23.776884,252.5,252.44,20.0]
[1732520131919,23.776884,252.52,252.44,20.0]
[1732520135005,23.776884,252.54,252.44,20.0]
[1732520135794,6.64547099,252.58,252.44,20.0]
[1732520135992,6.64547099,252.56,252.44,20.0]
[1732520136517,6.64547099,252.54,252.44,20.0]
[1732520137092,23.776884,252.51,252.44,20.0]
[1732520138104,23.776884,252.52,252.44,20.0]
[1732520139024,6.64547099,252.46,252.41,4.64138674]
[1732520139315,23.776884,252.5,252.3,82.6]
[1732520139497,6.64547099,252.38,252.27,22.2613]
[1732520140126,6.64547099,252.36,252.27,22.2613]
[1732520140612,6.64547099,252.36,252.3,20.0]
[1732520140996,6.64547099,252.4,252.27,22.2613]
[1732520141205,6.64547099,252.42,252.27,22.2613]
[1732520141515,23.776884,252.41,252.27,22.2613]
[1732520142307,23.776884,252.41,252.31,20.0]
[1732520142801,15.9606,252.51,252.31,20.0]
[1732520142997,6.64547099,252.46,252.33,20.0]
[1732520143617,6.64547099,252.49,252.35,20.0]
[1732520144427,6.64547099,252.45,252.34,20.0]
[1732520144998,6.64547099,252.45,252.31,10.0]
[1732520144999,6.64547099,252.43,252.31,20.0]
[1732520145308,23.776884,252.42,252.31,20.0]
[1732520145798,23.776884,252.42,252.3,20.0]
[1732520145995,6.64547099,252.39,252.27,22.2613]
[1732520146200,23.776884,252.38,252.27,22.2613]
[1732520146420,23.776884,252.36,252.27,22.2613]
[1732520147220,23.776884,252.38,252.27,22.2613]
[1732520147802,23.776884,252.38,252.28,0.59436526]
[1732520148129,23.776884,252.38,252.27,23.00236526]
[1732520148293,23.776884,252.38,252.28,10.59425146]
[1732520149024,0.59436526,252.46,252.31,20.0]
[1732520149203,6.64547099,252.47,252.31,20.0]
[1732520150212,23.776884,252.46,252.31,20.0]
[1732520151025,23.776884,252.46,252.32,20.0]
[1732520151213,6.64547099,252.45,252.32,20.0]
[1732520151608,23.776884,252.44,252.32,20.0]
[1732520157205,23.776884,252.45,252.32,20.0]
[1732520159924,23.776884,252.43,252.32,20.0]
[1732520160130,23.776884,252.45,252.32,20.0]
[1732520161938,23.776884,252.46,252.32,20.0]
[1732520162110,23.776884,252.44,252.32,20.0]
[1732520163131,6.64547099,252.43,252.3,20.59422031]
[1732520163335,23.776884,252.4,252.27,13.00236526]
[1732520163524,23.776884,252.38,252.23,16.4405]
[1732520163707,23.776884,252.38,252.23,10.9838432]
[1732520163907,23.776884,252.36,252.23,0.5943432]
[1732520164119,6.64547099,252.33,252.21,15.5395]
[1732520164335,23.776884,252.32,252.19,10.0]
[1732520164539,23.776884,252.32,252.18,10.0]
[1732520165532,23.776884,252.33,252.18,10.0]
[1732520165836,23.776884,252.33,252.21,20.0]